bitfinex/quotes_SOLUSD_20241122
["timestamp","ask_amount","ask_price","bid_price","bid_amount"]
[1732257712236,1.0,257.64,257.56,4.19119226]
[1732257712534,2.5,257.62,257.51,0.58223337]
[1732257712911,2.5,257.64,257.51,0.58223337]
[1732257713118,3.5,257.64,257.51,0.58223337]
[1732257713429,2.5,257.64,257.51,0.58223337]
[1732257713632,2.5,257.64,257.51,20.58223337]
[1732257714138,1.0,257.63,257.51,20.58223337]
[1732257714317,1.0,257.61,257.51,20.0]
[1732257715034,6.2194,257.62,257.51,20.0]
[1732257716228,6.2194,257.62,257.52,4.44918419]
[1732257716435,6.2194,257.62,257.52,24.44918419]
[1732257716638,6.2194,257.68,257.52,37.44037645]
[1732257716940,6.2194,257.68,257.52,33.57337645]
[1732257717314,6.2194,257.68,257.53,23.867]
[1732257718121,6.2194,257.68,257.53,32.667]
[1732257719420,8.7194,257.68,257.54,4.74207558]
[1732257719721,2.5,257.66,257.54,24.74207558]
[1732257719924,9.7194,257.68,257.54,24.74207558]
[1732257720124,9.7194,257.68,257.54,4.74207558]
[1732257720321,6.2194,257.68,257.55,23.867]
[1732257720514,6.2194,257.68,257.54,3.867]
[1732257723040,6.2194,257.68,257.54,8.64026935]
[1732257723217,6.2194,257.68,257.56,3.867]
[1732257723940,6.2194,257.68,257.57,3.867]
[1732257724131,6.2194,257.68,257.57,32.667]
[1732257724531,6.2194,257.68,257.57,37.40907558]
[1732257725642,6.2194,257.68,257.6,20.0]
[1732257725819,4.89736436,257.68,257.6,28.8]
[1732257726526,4.89736436,257.68,257.61,3.867]
[1732257726728,0.1057053,257.74,257.62,20.0]
[1732257726927,0.1057053,257.74,257.62,28.8]
[1732257727625,0.1057053,257.74,257.63,3.867]
[1732257729530,1.0,257.8,257.65,23.867]
[1732257729731,22.2585947,257.79,257.65,4.19119226]
[1732257730444,22.2585947,257.79,257.67,20.0]
[1732257730639,22.2585947,257.79,257.69,23.867]
[1732257730840,22.2585947,257.79,257.69,28.8]
[1732257731046,1.0,257.84,257.69,28.8]
[1732257731246,1.0,257.84,257.71,20.0]
[1732257731553,2.5,257.85,257.72,3.867]
[1732257731848,1.0,257.86,257.72,3.867]
[1732257732147,3.5,257.86,257.72,3.867]
[1732257732449,2.5,257.85,257.71,28.8]
[1732257732744,2.5,257.85,257.72,3.867]
[1732257733246,2.5,257.85,257.74,3.867]
[1732257733462,16.1409,257.86,257.74,3.867]
[1732257733944,2.5,257.85,257.74,3.867]
[1732257734250,15.1409,257.86,257.75,48.24252071]
[1732257734465,15.1409,257.86,257.75,52.98459629]
[1732257734751,8.7194,257.88,257.75,52.98459629]
[1732257735154,8.7194,257.88,257.76,3.867]
[1732257735325,15.1409,257.92,257.8,20.0]
[1732257735522,6.0537,257.96,257.81,23.776884]
[1732257735724,1.12458892,257.96,257.83,23.776884]
[1732257736028,2.5,257.97,257.85,3.867]
[1732257736431,2.5,258.13,257.81,4.46563671]
[1732257736432,1.0,257.94,257.81,24.46563671]
[1732257737132,1.0,257.94,257.82,23.867]
[1732257738230,1.0,257.94,257.83,3.867]
[1732257738452,2.5,257.95,257.83,28.33263671]
[1732257738640,2.5,257.95,257.83,24.46563671]
[1732257739041,1.0,257.94,257.83,4.46563671]
[1732257739740,1.0,257.94,257.83,2.88627971]
[1732257740948,3.5,257.97,257.83,2.88627971]
[1732257741242,3.5,257.97,257.85,20.0]
[1732257741445,2.5,257.97,257.85,20.0]
[1732257741846,2.5,257.97,257.86,27.643884]
[1732257742153,17.6409,257.98,257.87,20.0]
[1732257742953,1.0,257.97,257.87,20.0]
[1732257743549,2.5,257.95,257.87,20.0]
[1732257745136,2.5,257.95,257.86,20.0]
[1732257745751,2.5,257.97,257.86,20.0]
[1732257747936,15.1409,257.98,257.87,23.776884]
[1732257748134,15.1409,257.98,257.88,20.0]
[1732257748355,17.6409,257.98,257.88,20.0]
[1732257749055,1.0,258.01,257.9,20.0]
[1732257749557,0.99999887,258.01,257.9,20.0]
[1732257750466,0.99999887,258.01,257.9,24.61157204]
[1732257750754,0.99999887,258.01,257.9,28.47857204]
[1732257751550,0.99999887,258.01,257.92,20.0]
[1732257754239,0.99999887,258.01,257.91,24.61157204]
[1732257754866,0.99999887,258.01,257.92,23.867]
[1732257755041,2.5,258.02,257.92,23.867]
[1732257755241,17.02189887,258.05,257.92,28.47857204]
[1732257755437,19.52189887,258.05,257.92,28.47857204]
[1732257755660,2.5,258.03,257.92,28.47857204]
[1732257755858,2.5,258.03,257.93,24.61157204]
[1732257756361,2.5,258.03,257.94,23.867]
[1732257757653,19.52189887,258.05,257.94,23.867]
[1732257758151,16.0219,258.05,257.94,23.867]
[1732257758348,5.57805534,258.06,257.95,20.0]
[1732257758553,3.49999887,258.12,257.99,20.0]
[1732257758858,2.5,258.12,258.01,20.0]
[1732257759164,3.49999887,258.14,258.03,20.0]
[1732257759359,3.49999887,258.14,258.03,5.09618315]
[1732257759553,3.49999887,258.14,258.04,23.867]
[1732257759753,2.5,258.14,258.04,28.96318315]
[1732257759952,2.5,258.16,258.06,20.0]
[1732257760341,2.5,258.16,258.06,25.09618315]
[1732257760545,3.49999887,258.2,258.07,3.867]
[1732257760741,3.49999887,258.2,258.07,28.87306715]
[1732257761061,2.5,258.18,258.08,20.0]
[1732257761363,0.99999887,258.15,258.08,25.09618315]
[1732257761542,0.99999887,258.15,258.06,7.5476052]
[1732257761543,0.99999887,258.11,258.07,20.0]
[1732257761748,0.99999887,258.11,258.05,20.0]
[1732257762562,2.5,258.09,258.05,20.0]
[1732257763251,3.49999887,258.11,258.05,20.0]
[1732257763650,2.5,258.09,258.05,20.0]
[1732257763963,2.5,258.11,258.05,25.09618315]
[1732257764347,2.5,258.13,258.05,25.09618315]
[1732257764959,2.5,258.17,258.07,23.867]
[1732257765165,2.5,258.17,258.07,28.96318315]
[1732257765758,23.28279887,258.18,258.07,28.96318315]
[1732257765956,2.5,258.16,258.07,28.96318315]
[1732257766266,23.28279887,258.18,258.08,5.09618315]
[1732257766483,2.5,258.17,258.09,20.0]
[1732257766854,23.28279887,258.18,258.09,20.0]
[1732257767050,0.99999887,258.18,258.1,20.0]
[1732257767777,2.5,258.26,258.13,20.0]
[1732257768079,2.45117246,258.26,258.15,20.0]
[1732257768264,2.45117246,258.26,258.16,5.32007204]
[1732257768568,0.99999887,258.27,258.17,20.0]
[1732257768871,0.99999887,258.27,258.18,3.867]
[1732257769073,2.45117246,258.25,258.18,3.867]
[1732257769451,2.45117246,258.25,258.18,4.96596447]
[1732257769674,2.45117246,258.25,258.19,20.0]
[1732257769877,3.45117133,258.22,258.19,20.0]
[1732257770253,3.45117133,258.22,258.16,20.0]
[1732257770576,2.45117246,258.19,258.14,20.0]
[1732257770776,2.45117246,258.19,258.13,20.0]
[1732257770959,2.45117246,258.21,258.13,27.76806326]
[1732257771158,3.25106152,258.19,258.13,27.76806326]
[1732257771954,2.25106265,258.19,258.13,33.0881353]
[1732257772155,21.28367322,258.3,258.13,33.0881353]
[1732257772156,3.25106152,258.23,258.15,20.0]
[1732257772379,3.25106152,258.23,258.15,5.32007204]
[1732257772673,3.25106152,258.23,258.17,20.0]
[1732257772858,3.25106152,258.25,258.17,25.32007204]
[1732257773380,0.99999887,258.27,258.17,25.32007204]
[1732257773557,2.25106265,258.26,258.19,20.0]
[1732257773866,0.99999887,258.27,258.19,20.0]
[1732257774067,3.25106152,258.27,258.19,20.0]
[1732257776673,2.25106265,258.27,258.19,20.0]
[1732257776875,0.99999887,258.28,258.19,25.32007204]
[1732257777074,0.99999887,258.28,258.17,16.6235]
[1732257777075,2.25106265,258.29,258.21,20.0]
[1732257777674,2.25106265,258.27,258.21,20.0]
[1732257777977,3.25106152,258.3,258.22,20.0]
[1732257778173,2.25106265,258.28,258.23,20.0]
[1732257779263,0.99999887,258.27,258.23,20.0]
[1732257779582,2.25106265,258.28,258.23,20.0]
[1732257779763,0.99999887,258.27,258.23,20.0]
[1732257780666,3.25106152,258.23,258.19,7.57509145]
[1732257781005,2.25106265,258.21,258.19,7.57509145]
[1732257781286,2.25106265,258.23,258.12,5.32007204]
[1732257781990,2.25106265,258.23,258.13,20.0]
[1732257782277,2.25106265,258.23,258.12,13.1779257]
[1732257782278,3.25106152,258.25,258.15,20.0]
[1732257782578,2.25106265,258.23,258.17,20.0]
[1732257783487,2.25106265,258.23,258.17,5.32007204]
[1732257783664,0.99999887,258.21,258.18,20.0]
[1732257783865,3.25106152,258.23,258.18,20.0]
[1732257784075,2.25106265,258.21,258.18,20.0]
[1732257785974,3.25106152,258.23,258.18,20.0]
[1732257786291,2.25106265,258.23,258.18,20.0]
[1732257787387,2.25106265,258.24,258.18,20.0]
[1732257787583,2.25106265,258.2,258.18,20.0]
[1732257788787,15.4387,258.31,258.18,20.0]
[1732257788788,3.20532762,258.31,258.18,20.0]
[1732257794683,23.776884,258.35,258.18,5.32007204]
[1732257794877,6.0983,258.36,258.2,35.8833]
[1732257795394,6.0983,258.36,258.2,41.20337204]
[1732257800470,6.0983,258.36,258.2,48.73693438]
[1732257800676,23.776884,258.33,258.2,28.73693438]
[1732257801304,15.18537322,258.32,258.2,28.73693438]
[1732257801975,15.18537322,258.32,258.21,20.0]
[1732257802377,15.18537322,258.34,258.21,20.0]
[1732257802686,23.776884,258.33,258.21,20.0]
[1732257806676,23.776884,258.34,258.21,20.0]
[1732257808774,9.70513878,258.29,258.2,15.8833]
[1732257809175,23.776884,258.35,258.2,15.8833]
[1732257809376,9.70513878,258.32,258.2,15.8833]
[1732257809602,9.70513878,258.34,258.2,15.8833]
[1732257809809,23.776884,258.33,258.2,15.8833]
[1732257811087,23.776884,258.33,258.21,20.0]
[1732257811287,23.776884,258.31,258.21,20.0]
[1732257811986,23.776884,258.29,258.2,15.8833]
[1732257812297,9.70513878,258.28,258.2,15.8833]
[1732257814202,23.776884,258.29,258.2,15.8833]
[1732257814406,6.3636,258.34,258.2,15.8833]
[1732257814713,33.48202278,258.33,258.2,15.8833]
[1732257815403,23.776884,258.33,258.2,15.8833]
[1732257815588,23.776884,258.33,258.21,20.0]
[1732257817497,23.776884,258.34,258.21,20.0]
[1732257822207,12.23710936,258.4,258.23,20.0]
[1732257822391,9.70513878,258.36,258.23,20.0]
[1732257822710,5.87350936,258.41,258.23,20.0]
[1732257823005,9.70513878,258.39,258.23,20.0]
[1732257824120,5.87350936,258.45,258.23,20.0]
[1732257824307,9.70513878,258.4,258.23,20.0]
[1732257824506,5.87350936,258.45,258.25,15.3752]
[1732257824715,9.70513878,258.4,258.26,20.0]
[1732257825221,9.70513878,258.42,258.26,20.0]
[1732257825427,9.70513878,258.4,258.26,20.0]
[1732257825725,23.776884,258.39,258.26,20.0]
[1732257828531,23.776884,258.35,258.25,15.3752]
[1732257831138,9.70513878,258.36,258.25,15.3752]
[1732257831139,9.70513878,258.32,258.25,15.3752]
[1732257831425,23.776884,258.31,258.25,15.3752]
[1732257832414,23.776884,258.29,258.17,35.3752]
[1732257832630,23.776884,258.29,258.17,15.3752]
[1732257832933,5.87350936,258.37,258.17,15.3752]
[1732257833131,23.776884,258.36,258.17,20.40223033]
[1732257833330,23.776884,258.34,258.17,20.40223033]
[1732257834230,23.776884,258.34,258.18,20.0]
[1732257836142,23.776884,258.32,258.18,20.0]
[1732257837228,9.70513878,258.35,258.18,20.0]
[1732257837431,23.776884,258.34,258.18,20.0]
[1732257838739,9.70513878,258.33,258.18,20.0]
[1732257838941,23.776884,258.32,258.18,20.0]
[1732257840024,9.70513878,258.34,258.18,20.0]
[1732257840345,23.776884,258.33,258.18,20.0]
[1732257841141,9.70513878,258.34,258.18,20.0]
[1732257841734,9.70513878,258.36,258.18,20.0]
[1732257841940,23.776884,258.35,258.18,20.0]
[1732257842727,9.70513878,258.38,258.2,20.0]
[1732257842927,23.776884,258.37,258.2,20.0]
[1732257843324,9.70513878,258.36,258.2,20.0]
[1732257845044,5.87350936,258.42,258.21,45.678384]
[1732257845240,2.5,258.43,258.22,20.0]
[1732257845241,9.70513878,258.4,258.22,20.0]
[1732257845850,9.70513878,258.4,258.22,23.867]
[1732257846345,23.776884,258.39,258.22,23.867]
[1732257847044,9.70513878,258.38,258.22,20.0]
[1732257847444,23.776884,258.39,258.25,15.3752]
[1732257847648,23.776884,258.39,258.26,20.0]
[1732257847862,9.70513878,258.4,258.26,20.0]
[1732257849843,9.70513878,258.38,258.26,20.0]
[1732257850344,9.70513878,258.38,258.26,27.70755457]
[1732257850844,9.70513878,258.28,258.18,15.3752]
[1732257851153,23.776884,258.27,258.18,15.3752]
[1732257855736,23.776884,258.29,258.19,20.0]
[1732257855953,23.776884,258.3,258.19,20.0]
[1732257858151,9.70513878,258.29,258.19,20.0]
[1732257858547,23.776884,258.28,258.19,20.0]
[1732257859337,23.776884,258.28,258.18,15.3752]
[1732257859538,23.776884,258.28,258.19,20.0]
[1732257861731,23.776884,258.31,258.19,20.0]
[1732257861942,23.776884,258.3,258.19,20.0]
[1732257864260,9.70513878,258.27,258.19,20.0]
[1732257866241,9.70513878,258.27,258.18,15.3752]
[1732257866242,23.776884,258.26,258.18,15.3752]
[1732257867062,23.776884,258.32,258.18,15.3752]
[1732257867273,23.776884,258.28,258.18,15.3752]
[1732257868474,2.5,258.36,258.19,20.0]
[1732257868643,14.51010936,258.37,258.19,20.0]
[1732257868644,9.70513878,258.35,258.19,20.0]
[1732257870042,23.776884,258.34,258.19,20.0]
[1732257871351,9.70513878,258.33,258.19,20.0]
[1732257871563,9.70513878,258.31,258.19,20.0]
[1732257871747,23.776884,258.3,258.19,20.0]
[1732257872470,9.70513878,258.29,258.19,20.0]
[1732257872767,23.776884,258.28,258.19,20.0]
[1732257873949,23.776884,258.3,258.19,20.0]
[1732257875965,9.70513878,258.27,258.18,15.3752]
[1732257876159,23.776884,258.22,258.18,15.3752]
[1732257876354,23.776884,258.22,258.12,7.62071323]
[1732257876355,9.70513878,258.19,258.12,15.3115]
[1732257877045,9.70513878,258.21,258.12,15.3115]
[1732257877365,23.776884,258.2,258.12,15.3115]
[1732257880269,23.776884,258.2,258.13,20.0]
[1732257881045,8.37350936,258.3,258.13,20.0]
[1732257881245,9.70513878,258.25,258.13,20.0]
[1732257881947,9.70513878,258.27,258.13,20.0]
[1732257882144,9.70513878,258.27,258.07,11.71228828]
[1732257882145,2.5,258.28,258.14,21.8718]
[1732257882347,38.82055512,258.31,258.14,21.8718]
[1732257882559,23.776884,258.23,258.14,21.8718]
[1732257883467,23.776884,258.23,258.15,20.0]
[1732257887670,9.70513878,258.24,258.15,20.0]
[1732257888866,9.70513878,258.22,258.14,21.8718]
[1732257889783,23.776884,258.23,258.14,21.8718]
[1732257889947,23.776884,258.24,258.15,20.0]
[1732257890858,9.70513878,258.23,258.15,20.0]
[1732257901455,23.776884,258.24,258.15,20.0]
[1732257901886,23.776884,258.26,258.15,20.0]
[1732257902191,5.87350936,258.32,258.16,16.6304]
[1732257902361,5.87350936,258.36,258.19,20.0]
[1732257902562,9.70513878,258.35,258.19,20.0]
[1732257903084,9.70513878,258.36,258.22,20.0]
[1732257903557,9.70513878,258.38,258.24,20.0]
[1732257904283,9.70513878,258.4,258.26,20.0]
[1732257904956,9.70513878,258.38,258.26,20.0]
[1732257905183,23.776884,258.37,258.26,20.0]
[1732257905771,9.70513878,258.38,258.26,20.0]
[1732257905968,9.70513878,258.34,258.26,20.0]
[1732257906170,38.82055512,258.44,258.25,16.6304]
[1732257906171,9.70513878,258.32,258.25,16.6304]
[1732257907283,9.70513878,258.34,258.25,16.6304]
[1732257907581,9.70513878,258.34,258.26,20.0]
[1732257908575,23.776884,258.31,258.26,20.0]
[1732257908889,23.776884,258.41,258.26,20.0]
[1732257909074,9.70513878,258.34,258.26,20.0]
[1732257909662,5.87350936,258.43,258.26,20.0]
[1732257909663,23.776884,258.29,258.26,20.0]
[1732257909972,9.70513878,258.32,258.26,20.0]
[1732257910373,9.70513878,258.32,258.25,16.6304]
[1732257910990,9.70513878,258.28,258.25,16.6304]
[1732257911192,23.776884,258.25,258.19,16.6304]
[1732257911485,23.776884,258.23,258.19,16.6304]
[1732257912173,9.70513878,258.21,258.14,6.284]
[1732257912481,23.776884,258.2,258.13,15.8221]
[1732257913591,2.5,258.28,258.13,15.8221]
[1732257913892,23.776884,258.22,258.13,15.8221]
[1732257914476,9.70513878,258.19,258.13,15.8221]
[1732257914804,15.18330128,258.19,258.13,15.8221]
[1732257914991,23.776884,258.18,258.13,15.8221]
[1732257916279,23.776884,258.18,258.09,20.0]
[1732257919089,15.18330128,258.15,258.08,6.5412]
[1732257919288,23.776884,258.16,258.08,6.5412]
[1732257921392,15.18330128,258.13,258.06,15.8221]
[1732257921596,15.18330128,258.11,258.06,15.8221]
[1732257921802,23.776884,258.1,258.06,15.8221]
[1732257922896,23.776884,258.06,257.99,15.8221]
[1732257923121,23.776884,258.01,257.91,15.8221]
[1732257924098,23.776884,257.99,257.91,15.8221]
[1732257924599,23.776884,258.01,257.91,15.8221]
[1732257925275,8.7077,258.11,257.91,15.8221]
[1732257925276,15.18330128,258.08,257.91,15.8221]
[1732257925622,15.18330128,258.1,257.92,20.0]
[1732257926776,23.776884,258.09,257.92,20.0]
[1732257929480,15.18330128,258.08,257.93,3.861]
[1732257930395,15.18330128,258.06,257.91,15.8221]
[1732257931483,15.18330128,258.08,257.91,15.8221]
[1732257931800,15.18330128,258.11,257.95,16.0223]
[1732257931994,15.18330128,258.11,257.96,20.0]
[1732257932195,15.18330128,258.13,257.96,20.0]
[1732257933482,15.18330128,258.11,257.96,20.0]
[1732257934503,23.776884,258.17,257.96,20.0]
[1732257934504,15.18330128,258.13,257.98,20.0]
[1732257944810,9.72221251,258.08,257.98,20.0]
[1732257946913,23.776884,258.17,257.98,20.0]
[1732257947101,9.72221251,258.11,257.98,20.0]
[1732257948211,9.72221251,258.09,257.98,20.0]
[1732257951812,23.776884,258.17,257.98,20.0]
[1732257952033,9.72221251,258.15,258.0,20.0]
[1732257952532,6.6363,258.24,258.02,20.0]
[1732257952690,9.72221251,258.21,258.03,15.6423]
[1732257952895,9.72221251,258.19,258.04,23.861]
[1732257953323,9.72221251,258.19,258.04,20.0]
[1732257954519,9.72221251,258.17,258.04,20.0]
[1732257954910,9.72221251,258.15,258.04,20.0]
[1732257955108,9.72221251,258.13,258.04,20.0]
[1732257958200,9.72221251,258.11,258.04,20.0]
[1732257958400,9.72221251,258.13,258.04,20.0]
[1732257960800,9.72221251,258.15,258.04,20.0]
[1732257961125,9.72221251,258.21,258.04,20.0]
[1732257961304,9.72221251,258.19,258.04,20.0]
[1732257962434,9.72221251,258.19,258.06,20.0]
[1732257962729,9.72221251,258.2,258.06,20.0]
[1732257963223,9.72221251,258.18,258.06,20.0]
[1732257963404,9.72221251,258.15,258.06,20.0]
[1732257965643,9.72221251,258.14,258.06,20.0]
[1732257966728,9.72221251,258.14,258.05,6.6665]
[1732257966729,9.72221251,258.12,258.05,6.6665]
[1732257969708,9.72221251,258.14,258.05,6.6665]
[1732257971911,23.776884,258.2,258.06,20.0]
[1732257972112,9.72221251,258.21,258.06,20.0]
[1732257972333,5.87350936,258.25,258.07,16.6403]
[1732257972544,9.72221251,258.22,258.08,20.0]
[1732257972720,5.87350936,258.26,258.08,20.0]
[1732257972916,9.72221251,258.21,258.08,20.0]
[1732257973639,9.72221251,258.19,258.08,20.0]
[1732257973951,9.72221251,258.13,258.07,16.6403]
[1732257974438,9.72221251,258.15,258.07,16.6403]
[1732257975434,9.72221251,258.13,258.07,16.6403]
[1732257976041,9.72221251,258.11,258.07,16.6403]
[1732257977540,9.72221251,258.13,258.07,16.6403]
[1732257980033,9.72221251,258.11,258.07,16.6403]
[1732257981041,9.72221251,258.13,258.07,16.6403]
[1732257981237,23.776884,258.18,258.07,16.6403]
[1732257981423,9.72221251,258.16,258.07,16.6403]
[1732257984549,9.72221251,258.14,258.07,16.6403]
[1732257990632,5.87350936,258.21,258.08,26.128]
[1732257990959,9.72221251,258.2,258.08,26.128]
[1732257991337,9.72221251,258.18,258.08,26.128]
[1732257991731,9.72221251,258.16,258.08,26.128]
[1732257992850,9.72221251,258.14,258.08,6.128]
[1732257993358,9.72221251,258.17,258.08,6.128]
[1732257995135,9.72221251,258.15,258.08,6.128]
[1732257995654,9.72221251,258.16,258.08,6.128]
[1732257997957,9.72221251,258.18,258.08,6.128]
[1732257998458,5.87350936,258.22,258.09,20.0]
[1732257998765,11.74701872,258.24,258.09,20.0]
[1732257998766,9.72221251,258.21,258.09,20.0]
[1732257999134,9.72221251,258.19,258.09,20.0]
[1732257999655,5.87350936,258.24,258.09,20.0]
[1732257999844,9.72221251,258.19,258.09,20.0]
[1732258002337,5.87350936,258.24,258.09,20.0]
[1732258002543,9.72221251,258.22,258.09,20.0]
[1732258004874,9.72221251,258.24,258.09,20.0]
[1732258005070,9.72221251,258.24,258.11,20.0]
[1732258006061,5.87350936,258.29,258.13,20.0]
[1732258006266,9.72221251,258.28,258.15,20.0]
[1732258007259,9.72221251,258.28,258.17,20.0]
[1732258007764,21.33962736,258.32,258.17,20.0]
[1732258007967,9.72221251,258.32,258.15,20.0]
[1732258008145,9.72221251,258.32,258.19,20.0]
[1732258008664,9.72221251,258.32,258.2,23.776884]
[1732258008844,9.72221251,258.32,258.23,20.0]
[1732258009169,9.72221251,258.34,258.23,20.0]
[1732258009342,15.461976,258.39,258.23,20.0]
[1732258009659,9.72221251,258.37,258.25,20.0]
[1732258009839,5.87350936,258.41,258.26,15.1681]
[1732258010042,9.72221251,258.39,258.27,20.0]
[1732258010459,21.33241436,258.44,258.29,20.0]
[1732258010665,9.72221251,258.43,258.29,20.0]
[1732258011061,9.72221251,258.41,258.29,20.0]
[1732258015470,23.776884,258.47,258.31,20.0]
[1732258015769,6.2996,258.51,258.31,20.0]
[1732258015770,9.72221251,258.43,258.31,20.0]
[1732258016062,5.87350936,258.6,258.36,15.1681]
[1732258016288,9.72221251,258.54,258.41,20.0]
[1732258016451,9.722212,258.61,258.41,20.0]
[1732258016644,9.722212,258.61,258.43,20.0]
[1732258016850,2.5,258.64,258.45,20.0]
[1732258017377,9.72221251,258.59,258.45,20.0]
[1732258017660,12.173109,258.63,258.45,20.0]
[1732258017863,9.72221251,258.64,258.48,20.0]
[1732258018449,9.72221251,258.64,258.48,23.861]
[1732258018647,15.14175756,258.55,258.47,6.5893]
[1732258018853,15.14175756,258.52,258.47,6.5893]
[1732258019569,23.776884,258.53,258.47,6.5893]
[1732258021951,15.14175756,258.52,258.47,6.5893]
[1732258022278,23.776884,258.51,258.47,6.5893]
[1732258022972,23.776884,258.53,258.47,6.5893]
[1732258024048,23.776884,258.49,258.46,15.1681]
[1732258024776,23.776884,258.53,258.46,15.1681]
[1732258025469,15.14175756,258.54,258.46,15.1681]
[1732258025649,15.14175756,258.54,258.47,20.0]
[1732258026057,15.14175756,258.56,258.47,20.0]
[1732258026362,15.14175756,258.58,258.47,20.0]
[1732258027363,15.14175756,258.56,258.47,20.0]
[1732258027572,23.776884,258.55,258.47,20.0]
[1732258027752,15.14175756,258.52,258.47,20.0]
[1732258028070,15.14175756,258.54,258.47,20.0]
[1732258028283,23.776884,258.53,258.47,20.0]
[1732258028459,23.776884,258.55,258.47,20.0]
[1732258033079,15.14175756,258.52,258.46,15.1681]
[1732258033265,23.776884,258.51,258.46,15.1681]
[1732258036266,23.776884,258.49,258.46,15.1681]
[1732258036464,23.776884,258.47,258.4,22.351]
[1732258037258,23.776884,258.43,258.4,16.3289]
[1732258037762,23.776884,258.41,258.34,22.668]
[1732258038479,23.776884,258.39,258.34,16.3289]
[1732258038659,23.776884,258.39,258.28,6.3391]
[1732258039277,23.776884,258.41,258.28,6.3391]
[1732258039778,23.776884,258.41,258.29,20.0]
[1732258040166,23.776884,258.43,258.29,20.0]
[1732258040780,33.47644329,258.43,258.29,20.0]
[1732258041878,23.776884,258.4,258.29,20.0]
[1732258042070,9.69955929,258.39,258.29,20.0]
[1732258042588,23.776884,258.38,258.29,20.0]
[1732258043364,23.776884,258.36,258.28,6.3391]
[1732258043580,23.776884,258.36,258.27,16.3289]
[1732258047573,9.69955929,258.35,258.27,16.3289]
[1732258047774,9.69955929,258.33,258.27,16.3289]
[1732258048082,23.776884,258.32,258.27,16.3289]
[1732258049475,23.776884,258.28,258.17,15.2661]
[1732258050089,2.5,258.43,258.17,15.2661]
[1732258050275,23.776884,258.35,258.17,15.2661]
[1732258050464,23.776884,258.35,258.18,3.861]
[1732258050670,23.776884,258.35,258.18,23.861]
[1732258052591,23.776884,258.37,258.18,23.861]
[1732258052898,23.776884,258.37,258.2,3.861]
[1732258053071,23.776884,258.37,258.2,23.861]
[1732258056090,23.776884,258.37,258.21,23.861]
[1732258056397,6.0972,258.44,258.23,35.2661]
[1732258056398,23.776884,258.39,258.23,35.2661]
[1732258056693,23.776884,258.41,258.23,35.2661]
[1732258057083,23.776884,258.41,258.24,3.861]
[1732258057477,9.69955929,258.42,258.23,35.2661]
[1732258057680,10.3899,258.53,258.29,20.0]
[1732258057900,9.69955929,258.49,258.31,20.0]
[1732258058072,9.69955929,258.49,258.32,3.861]
[1732258058507,9.69955929,258.47,258.31,20.0]
[1732258058673,9.69955929,258.45,258.31,20.0]
[1732258058875,9.69955929,258.41,258.31,20.0]
[1732258059074,9.69955929,258.43,258.31,20.0]
[1732258059883,23.776884,258.42,258.31,20.0]
[1732258060197,9.69955929,258.45,258.31,23.861]
[1732258060696,15.15165758,258.46,258.31,20.0]
[1732258061593,23.776884,258.45,258.31,20.0]
[1732258064910,23.776884,258.47,258.31,20.0]
[1732258067180,15.15165758,258.46,258.31,20.0]
[1732258067613,23.776884,258.47,258.33,20.0]
[1732258067902,15.15165758,258.52,258.34,15.5463]
[1732258068206,15.15165758,258.52,258.35,20.0]
[1732258070182,23.776884,258.51,258.35,20.0]